Cogmind - Beta 10.2 @@@ ROGUE MODE // 2022.02.06 @ 01:04:55 Player: Conner Result: Destroyed by Y-45 Defender with Beam Rifle Performance ------------- Evolutions (1) 500 Regions Visited (3) 600 Robots Destroyed (17) 85 Value Destroyed (374) 374 Prototype IDs (0) 0 Alien Tech Used (0) 0 Bonus (0) 0 TOTAL SCORE: 1559 Bonus ------- None Cogmind --------- Core Integrity 0/400 Matter 300/300 Energy 87/100 System Corruption 2% Temperature Cool (9) Movement Core (300) Ox5 Location -9/Materials Parts ------- > --- POWER (1) -------- (None) > --- PROPULSION (3) --- (None) > --- UTILITY (3) ------ Large Storage Unit Seismic Analyzer > --- WEAPON (2) ------- (None) > --- INVENTORY (10) --- Medium Storage Unit Large Storage Unit Improved Targeting Computer Peak State ------------ > --- POWER ------------ Ion Engine > --- PROPULSION ------- Wheel Wheel Wheel > --- UTILITY ---------- Medium Storage Unit Improved Terrain Scanner Seismic Analyzer > --- WEAPON ----------- Medium Laser Medium Laser > --- INVENTORY -------- Ion Engine Mining Laser [Rating: 10] Favorites ----------- Power Ion Engine Engine Ion Engine Propulsion Wheel Wheel Wheel Utility Seismic Analyzer Device Improved Terrain Scanner Storage Medium Storage Unit Processor Seismic Analyzer Weapon Medium Laser Energy Gun Medium Laser Ballistic Gun Light Assault Rifle Special Weapon Mining Laser Build | -11 -10 -10 -9 ------- Run | Scr Mat Min Mat Slots Evolved 2 | . . . 2 Power . | . . . . Propulsion 1 | . . . 1 Utility 1 | . . . 1 Weapon . | . . . . Parts Attached 22 | 11 6 . 5 Power 4 | 2 1 . 1 Engine 4 | 2 1 . 1 Core . | . . . . Reactor . | . . . . Propulsion 6 | 3 2 . 1 Treads . | . . . . Leg . | . . . . Wheel 6 | 3 2 . 1 Hover . | . . . . Flight . | . . . . Utility 6 | 4 . . 2 Device 1 | 1 . . . Storage 4 | 2 . . 2 Processor 1 | 1 . . . Hackware . | . . . . Protection . | . . . . Artifact . | . . . . Weapon 6 | 2 3 . 1 Energy Gun 3 | 1 2 . . Energy Cannon . | . . . . Ballistic Gun 2 | 1 1 . . Ballistic Cannon . | . . . . Launcher . | . . . . Special Weapon 1 | . . . 1 Impact Weapon . | . . . . Slashing Weapon . | . . . . Piercing Weapon . | . . . . Special Melee Weapon . | . . . . Unidentified Prototypes . | . . . . Parts Lost 10 | . 1 . 9 Power 2 | . . . 2 Propulsion 3 | . . . 3 Utility 1 | . . . 1 Weapon 4 | . 1 . 3 Highest Loss Streak 8 | . 1 . 8 Average Slot Usage (%) 97 | . 100 100 94 Engine 12 | . 14 14 10 Wheel 29 | . 28 28 30 Device 12 | . 14 14 10 Storage 5 | . . . 11 Processor 12 | . 14 14 11 Energy Gun 15 | . 5 28 19 Ballistic Gun 8 | . 22 . . Naked Turns . | . . . . Heaviest Build 26 | 15 10 10 26 Greatest Support 30 | 26 20 20 30 Greatest Overweight (x) 1 | . . . 1 Average Overweight (x) . | . . . . Largest Inventory Capacity 10 | 8 4 4 10 Average Capacity 6 | 6 4 4 8 Most Carried 8 | 8 4 4 5 Average Carried 3 | 3 3 4 2 Final Capacity 10 | 4 4 4 10 Final Carried 4 | 4 4 4 3 Class Distribution -------------------- 61% | Scavenger-Mutant 38% | Mutant Dominant Class ---------------- Mutant | -10/Materials Scavenger-Mutant | -10/Mines Scavenger-Mutant | -9/Materials Resources | -11 -10 -10 -9 ----------- Run | Scr Mat Min Mat Matter Collected 443 | 295 118 . 30 Remotely . | . . . . Salvage Created 533 | 110 317 39 67 Parts 33 | 11 18 4 . Haulers Intercepted 1 | . 1 . . Recyclers Shooed 1 | . . 1 . Parts Field Recycled . | . . . . Retrieved Matter . | . . . . Parts Self-Destructed . | . . . . Prevented . | . . . . Kills | -11 -10 -10 -9 ------- Run | Scr Mat Min Mat Combat Hostiles Destroyed 11 | . 5 3 3 Guns 9 | . 5 3 1 Cannons 2 | . . . 2 Classes Destroyed 8 | 2 4 1 1 Worker 1 | . 1 . . Tunneler 2 | 2 . . . Hauler 1 | . 1 . . Recycler 1 | 1 . . . Watcher 1 | . 1 . . Swarmer 3 | . . 3 . Grunt 5 | . 5 . . Sentry 3 | . . . 3 Best Kill Streak 4 | 2 4 3 2 Combat Bots Only 3 | . 3 3 2 Max Kills in Single Turn 1 | 1 1 1 1 Gunslinging . | . . . . Exploded . | . . . . Melee . | . . . . Uniques/NPCs Destroyed . | . . . . Combat | -11 -10 -10 -9 -------- Run | Scr Mat Min Mat Damage Taken 1182 | . 234 89 859 Core 476 | . 43 32 401 Absorbed by Shields . | . . . . Core Remaining (%) 85 | 100 . 70 . Volleys Fired 53 | 6 25 8 14 Largest 2 | 2 2 2 2 Hottest 100 | 60 60 100 100 Shots Fired 98 | 12 49 16 21 Gun 92 | 12 49 16 15 Cannon . | . . . . Launcher . | . . . . Special 6 | . . . 6 Kinetic 46 | 6 40 . . Thermal 52 | 6 9 16 21 Explosive . | . . . . Electromagnetic . | . . . . Robot Hit Streak 12 | 8 12 6 12 Robot Miss Streak 3 | 1 3 3 1 Penetration Max . | . . . . Secondary Targets 3 | . 2 1 . Max Gunslinging Chain 1 | . 1 1 . Shots Hit Robots 72 | 9 34 9 20 Core Hits 40 | 5 19 3 13 Critical Hits . | . . . . Critical Kills . | . . . . Critical Parts Destroyed . | . . . . Melee Attacks . | . . . . Impact . | . . . . Slashing . | . . . . Piercing . | . . . . Sneak Attacks . | . . . . Combat Hostiles . | . . . . Follow-up Attacks . | . . . . Damage Inflicted 889 | 85 321 151 332 Guns 731 | 85 321 151 174 Cannons . | . . . . Explosions . | . . . . Melee . | . . . . Ramming 14 | . . . 14 Kinetic 288 | 41 247 . . Thermal 587 | 44 74 151 318 Explosive . | . . . . Electromagnetic . | . . . . Impact . | . . . . Slashing . | . . . . Piercing . | . . . . Highest Corruption 2 | . . . 2 Average Corruption 1 | . . . 1 Corruption Purged . | . . . . Effects 1 | . . . 1 Energy Discharges 1 | . . . 1 Overload Shots . | . . . . Overflow Damage . | . . . . Projectiles . | . . . . Explosions . | . . . . Melee . | . . . . Knockbacks . | . . . . Impact . | . . . . Kinetic . | . . . . Secondary . | . . . . Self-Inflicted Damage 1 | . . . 1 Shots . | . . . . Rammed 15 | . . . 15 Targets Rammed 15 | . . . 15 Kicked . | . . . . Crushed . | . . . . Highest Temperature 234 | 40 108 234 154 Average Temperature 71 | 18 33 101 88 Received Heat Transfer 405 | . 129 . 276 Siege Activations . | . . . . Robots Corrupted . | . . . . Combat Hostiles . | . . . . Parts Fried . | . . . . Impact Corruptions . | . . . . Robots Melted . | . . . . Combat Hostiles . | . . . . Parts Melted 6 | . 1 1 4 Heat Transferred 1537 | 100 175 444 818 Parts Sabotaged . | . . . . Parts Stolen . | . . . . Parts Stripped . | . . . . Power Chain Reactions . | . . . . Missiles Intercepted . | . . . . Alert | -11 -10 -10 -9 ------- Run | Scr Mat Min Mat Peak Influence 141 | 15 141 101 115 Initial 39 | . 9 31 39 Average 57 | 8 93 42 43 Maximum Alert Level . | . . . . Low Security (%) 100 | 100 100 100 100 Level 1 . | . . . . Level 2 . | . . . . Level 3 . | . . . . Level 4 . | . . . . Level 5 . | . . . . High Security . | . . . . Max Security . | . . . . Squads Dispatched 2 | . 2 . . Investigation . | . . . . Extermination . | . . . . Reinforcement 2 | . 2 . . Assault . | . . . . Garrison . | . . . . Intercept . | . . . . Construction Impeded . | . . . . Haulers Reinforced . | . . . . Stealth | -11 -10 -10 -9 --------- Run | Scr Mat Min Mat Distress Signals 1 | . 1 . . Communications Jammed . | . . . . Distress Signals . | . . . . Times Spotted 21 | . 12 3 6 Peak Tracking Total 4 | . 3 3 4 Tactical Retreats 2 | . 1 . 1 Traps | -11 -10 -10 -9 ------- Run | Scr Mat Min Mat Traps Triggered . | . . . . Indirectly . | . . . . Trap Hack Attempts . | . . . . Triggered . | . . . . Disarmed . | . . . . Reprogrammed . | . . . . Reused . | . . . . Traps Extracted . | . . . . Installed . | . . . . Triggered . | . . . . Machines | -11 -10 -10 -9 ---------- Run | Scr Mat Min Mat Machines Disabled . | . . . . Max in Single Turn . | . . . . Machines Sabotaged . | . . . . Garrisons Compromised . | . . . . Overloaded Fab Kills . | . . . . Fab Network Shutdowns . | . . . . Hacking | -11 -10 -10 -9 --------- Run | Scr Mat Min Mat Machines Accessed 3 | . 1 . 2 Terminals 3 | . 1 . 2 Fabricators . | . . . . Repair Stations . | . . . . Recycling Units . | . . . . Scanalyzers . | . . . . Garrison Access . | . . . . Total Hacks 8 | . 3 . 5 Successful 5 | . 2 . 3 Failed 3 | . 1 . 2 Catastrophic . | . . . . Database Lockouts . | . . . . Manual 7 | . 3 . 4 Terminals 8 | . 3 . 5 Fabricators . | . . . . Repair Stations . | . . . . Recycling Units . | . . . . Scanalyzers . | . . . . Garrison Access . | . . . . Terminal Hacks 2 | . . . 2 Record 1 | . . . 1 Alert Level 1 | . . . 1 Fabricator Hacks . | . . . . Repair Station Hacks . | . . . . Recycling Unit Hacks . | . . . . Scanalyzer . | . . . . Garrison Access Hacks . | . . . . Unauthorized Hacks 3 | . 2 . 1 Terminals 3 | . 2 . 1 Track 1 | . 1 . . Botnet 2 | . 1 . 1 Fabricators . | . . . . Repair Stations . | . . . . Recycling Units . | . . . . Scanalyzers . | . . . . Garrison Access . | . . . . Data Cores Recovered . | . . . . Used . | . . . . Hacking Detections 3 | . 1 . 2 Full Trace Events . | . . . . Feedback Events . | . . . . Feedback Blocked . | . . . . Robot Schematics Acquired . | . . . . Robots Built . | . . . . Matter . | . . . . Time . | . . . . Total Robot Build Rating . | . . . . Part Schematics Acquired . | . . . . Parts Built . | . . . . Matter . | . . . . Time . | . . . . Total Part Build Rating . | . . . . Parts Repaired . | . . . . Time . | . . . . Parts Recycled . | . . . . Recycled Matter . | . . . . Retrieved Matter . | . . . . Retrieved Components . | . . . . Parts Scanalyzed . | . . . . Part Schematics Acquired . | . . . . Parts Damaged . | . . . . Bothacking | -11 -10 -10 -9 ------------ Run | Scr Mat Min Mat Used RIF Installer . | . . . . Robots Hacked . | . . . . Non-combat . | . . . . Combat . | . . . . Robot Hacks Applied . | . . . . Relay Couplers Released . | . . . . Robots Rewired . | . . . . Allies Hacked . | . . . . Hacks Repelled . | . . . . Allies | -11 -10 -10 -9 -------- Run | Scr Mat Min Mat Total Allies . | . . . . Largest Group . | . . . . Highest-Rated Group . | . . . . Highest-Rated Ally . | . . . . Total Orders . | . . . . Ally Attacks . | . . . . Total Damage . | . . . . Kills . | . . . . Allies Corrupted . | . . . . Allies Melted . | . . . . Intel | -11 -10 -10 -9 ------- Run | Scr Mat Min Mat Robot Analysis Total . | . . . . Derelict Logs Recovered . | . . . . Drone Launches . | . . . . Drone Recoveries . | . . . . Exploration | -11 -10 -10 -9 ------------- Run | Scr Mat Min Mat Turns Passed 1596 | 121 538 175 762 Spaces Moved 549 | 73 202 99 175 Core 2 | 2 . . . Treads . | . . . . Legs . | . . . . Wheels 547 | 71 202 99 175 Hover . | . . . . Flight . | . . . . Fastest Speed 50 | 50 80 80 80 Average Speed 80 | 84 80 80 80 Slowest Speed 90 | 90 80 80 90 Overloaded Moves . | . . . . Propulsion Burnouts . | . . . . Robots Hopped . | . . . . Cave-ins Triggered . | . . . . Exploration Rate (%) 24 | 3 44 40 11 Regions Visited 3 Branch Regions 1 Pre-discovered Areas . | . . . . Known Exits Taken . | . . . . Unknown Exits Taken 3 | 1 1 1 . Scrap Searched . | . . . . Spaces Dug . | . . . . Terrain Destroyed . | . . . . Melee . | . . . . Projectile . | . . . . AOE . | . . . . Terrain Rammed . | . . . . Walls Destroyed . | . . . . Machines Disabled . | . . . . Actions | -11 -10 -10 -9 --------- Run | Scr Mat Min Mat Total 1576 | 120 541 178 737 Wait 912 | 17 297 72 526 Move 546 | 72 201 98 175 Hop . | . . . . Pick Up 16 | 10 4 . 2 Fast Attach 9 | 7 2 . . Attach 5 | . 1 . 4 Detach . | . . . . Swap 8 | 4 3 . 1 Drop 12 | 4 8 . . Fire 53 | 6 25 8 14 Melee . | . . . . Ram 15 | . . . 15 Kick . | . . . . Crush . | . . . . Escape Stasis . | . . . . Rewire . | . . . . Trap . | . . . . Miscellaneous . | . . . . Route ------- -11/Scrapyard -10/Materials (discovered 3 exits: *Mat x2 / [*Min]) -10/Mines -9/Materials History --------- Turn | Location | Event 14 | -11/Scrapyard | Discovered new exit (range 16) 122 | -11/Scrapyard | Entered Materials 173 | -10/Materials | Discovered new exit (range 7) 224 | -10/Materials | Discovered new exit (range 15) 317 | -10/Materials | Build established: Mutant 620 | -10/Materials | Discovered new exit (range 16) 660 | -10/Materials | Entered Mines 791 | -10/Mines | Discovered new exit (range 10) 830 | -10/Mines | Assembled infested the area 835 | -10/Mines | Entered Materials 835 | -9/Materials | Evolved 2 slots: Propulsion x1, Utility x1 857 | -9/Materials | Build established: Scavenger-Mutant 1579 | -9/Materials | Core integrity fell below 50% 1586 | -9/Materials | Core integrity fell below 20% 1597 | -9/Materials | Destroyed by Y-45 Defender with Beam Rifle Last Messages --------------- 01549_ Wheel destroyed. 01555_ Mining Laser destroyed. 01555_ Slammed into Y-45 Defender. 01558_ Wheel destroyed. 01558_ Slammed into Y-45 Defender. 01558_ Destabilizing: System interference. 01558_ Imp. Terrain Scanner temporarily disabled. 01561_ Connecting with Terminal... 01561_ Slammed into Y-45 Defender. 01561_ Destabilizing: System corrupted (+1). 01564_ Slammed into Y-45 Defender. 01570_ Destabilizing: System corrupted (+1). 01573_ Slammed into Y-45 Defender. 01576_ Destabilizing: Core damaged (-4). 01578_ Fusion Modulator explodes. 01578_ Terminal disabled. 01579_ Imp. Terrain Scanner destroyed. 01579_ Slammed into Y-45 Defender. 01593_ System corrupted: Energy discharge (-33). 01594_ Slammed into Y-45 Defender. Map ----- +----------------------------------------------------+ | ??????#### ??#### # """ ? ? ?????????????? | | ????? ? ###### # """ ##?##???+??????????? | | ???? # ###### # """ #### ?????????????? | | ???? # ###### # ?###? """???????????? | | ??? ? ?# ###?## # """ ?#### ?Y? ??????????? | | ???? + ###### # """? #### ??? ?????????? | | ???? ? # ###### #?""" ##?# ? ??#????????? | | ???####### # # #? ?#### ? ? ##???????? | | ???? ?#?## # # #### ############### ????? | | ???? #### ?? # # ###### #####?##?#? ??? | | ????? #### # + % ########?#??###??? | | ????? ########## # ###### #####??#??#?#?###? | | ????? ########## # ###### #########?###?##?# | | ????? ########## # ####! !#######???##?##?# | | ??#??########?## # ####! !#######??##?#?### | | ????#?####?##### # #####! !#####??###?##?#??# | | ??#?#?############### #############?####??##?#### | | ??#????#?####### T # ##########?##############?? | | ????????#?###### # ############## ####??## | | ????????##?##### # #######? | | ??????????###### # ##??#?## | | ???????#???##### + #######? | | ?????????#????## ####;;;;;####### ####?##? | | ??#????????????# ! ##;; % " #?## ########? | | ??????????#????# + ;Y % % %##?# ######### | | ?????????###?#?# ##;; @ % ;### ######### | | ???????????????###### ; % %;### ##?#??##? | | ???????????##?#?#??## ; ; ## ##?#??##? | | ?????#??????#?#???#### ; ; ######?#??###? | | ??????#???###??#?#?#?# ; ;#########?###?# | | ??????#???????????#### ; ;####?####?#?### | | ??????????????#?#?#### ; ;;;#?###?#?######? | | ???????????????#?????#### ########?##?##?# | | | | | | | | | | | | | | | | | | | | | | | | | | | | | | | | | | | +----------------------------------------------------+ Best States ------------- Heat Dissipation 28 Energy Generation 10 Energy Capacity 250 Matter Stores 300 Matter Capacity 300 Sight Range 16 Terrain Scan Range 16 Terrain Scan Density 60 Evasion (%) 44 Item Schematics ----------------- None Robot Schematics ------------------ None Fabricated ------------ Nothing Alien Tech Used ----------------- None Achievements -------------- None Challenges ------------ None Game ------ Seed RegenerativeBottomlessArray Manual? 0 Play Time 00:08:44 Cumulative 32.3 hours Start 2022.02.06 @ 00:58:18 End 2022.02.06 @ 01:04:55 Sessions 1 Manual Loads 0 Difficulty Rogue Special Mode None Game No. 53 Rogue 53 Adventurer 0 Explorer 0 Win Type - Total 0 Types 0/0/0/0/0/0/0/0/0 Lore% 46 Gallery% 43 Achievement% 36 Wizard Run 0 Options --------- ASCII 0 Keyboard 0 Movement Numpad Keybinds 0 Fullscreen 1 Font 24/Smallcaps Map View 76x50 Tactical HUD 1 Map Filters NONE Filters NONE Steam 1 RUN: 5555eddb-3661-431a-98cc-f274997acb75